[Event "*** Titled Tuesday Blitz"]
[Site "Chess.com"]
[Date "2020.05.19"]
[Round "9"]
[White "korbul"]
[Black "Xeniya2005"]
[Result "1-0"]
[WhiteElo "2434"]
[BlackElo "2279"]
[TimeControl "180+1"]
[EndTime "13:46:27 PDT"]
[Termination "korbul won by resignation"]

1. d4 {[%clk 0:03:00.9]} 1... Nf6 {[%clk 0:02:59.3]} 2. c4 {[%clk 0:02:59.8]}
2... b6 {[%clk 0:02:59.1]} 3. f3 {[%clk 0:02:58.8]} 3... Nc6 {[%clk 0:02:48]} 4.
e4 {[%clk 0:02:58.2]} 4... e5 {[%clk 0:02:46.4]} 5. d5 {[%clk 0:02:57.4]} 5...
Nd4 {[%clk 0:02:41]} 6. Be3 {[%clk 0:02:55.4]} 6... c5 {[%clk 0:02:39.3]} 7. Nc3
{[%clk 0:02:53.4]} 7... d6 {[%clk 0:02:34.6]} 8. Bd3 {[%clk 0:02:53.2]} 8... h6
{[%clk 0:02:30.4]} 9. Nge2 {[%clk 0:02:52.6]} 9... g6 {[%clk 0:02:29.2]} 10. Qd2
{[%clk 0:02:51.4]} 10... Bg7 {[%clk 0:02:28.4]} 11. O-O-O {[%clk 0:02:50.2]}
11... Bd7 {[%clk 0:02:27.2]} 12. Rdf1 {[%clk 0:02:46.1]} 12... a6 {[%clk
0:02:22.4]} 13. g4 {[%clk 0:02:45.3]} 13... b5 {[%clk 0:02:18.9]} 14. h4 {[%clk
0:02:39.9]} 14... bxc4 {[%clk 0:02:11.7]} 15. Bxc4 {[%clk 0:02:39.3]} 15... Qa5
{[%clk 0:02:09.9]} 16. g5 {[%clk 0:02:26.2]} 16... hxg5 {[%clk 0:02:06.8]} 17.
Bxg5 {[%clk 0:02:22.9]} 17... Bb5 {[%clk 0:01:57.6]} 18. Qd3 {[%clk 0:02:18]}
18... Rb8 {[%clk 0:01:39]} 19. f4 {[%clk 0:01:52.3]} 19... Bxc4 {[%clk 0:01:23]}
20. Qxc4 {[%clk 0:01:50.8]} 20... Rb4 {[%clk 0:01:22.1]} 21. Qd3 {[%clk
0:01:50.9]} 21... Nxe2+ {[%clk 0:00:59.5]} 22. Qxe2 {[%clk 0:01:47.9]} 22... Nh5
{[%clk 0:00:49.8]} 23. fxe5 {[%clk 0:01:33.5]} 23... Bxe5 {[%clk 0:00:48.3]} 24.
Qf3 {[%clk 0:01:26.8]} 24... f6 {[%clk 0:00:44.8]} 25. Qg4 {[%clk 0:01:23.7]}
25... Qc7 {[%clk 0:00:27.8]} 26. Bd2 {[%clk 0:01:19.4]} 26... Kf7 {[%clk
0:00:20.9]} 27. Qe6+ {[%clk 0:01:14.8]} 27... Kg7 {[%clk 0:00:20.5]} 28. Rhg1
{[%clk 0:01:14.6]} 28... Qf7 {[%clk 0:00:20.6]} 29. Qg4 {[%clk 0:01:08.3]} 29...
Kh7 {[%clk 0:00:20.6]} 30. Qf3 {[%clk 0:00:55.6]} 30... Rhb8 {[%clk 0:00:19.8]}
31. Qe3 {[%clk 0:00:54.1]} 31... Rxb2 {[%clk 0:00:19.2]} 32. Qh6+ {[%clk
0:00:53.2]} 32... Kg8 {[%clk 0:00:18.7]} 33. Rxg6+ {[%clk 0:00:53]} 33... Ng7
{[%clk 0:00:18.9]} 34. Rfg1 {[%clk 0:00:50.7]} 34... R8b7 {[%clk 0:00:17.4]} 35.
Rxg7+ {[%clk 0:00:43.4]} 35... Qxg7 {[%clk 0:00:17.5]} 36. Rxg7+ {[%clk
0:00:43.2]} 36... Rxg7 {[%clk 0:00:18.4]} 37. Kxb2 {[%clk 0:00:43.1]} 37... Rg2
{[%clk 0:00:18.3]} 38. Kc1 {[%clk 0:00:42.2]} 38... c4 {[%clk 0:00:18.3]} 39.
Qh5 {[%clk 0:00:41.7]} 39... Kf8 {[%clk 0:00:18.2]} 40. Qh8+ {[%clk 0:00:40.6]}
40... Rg8 {[%clk 0:00:17.9]} 41. Bh6+ {[%clk 0:00:39.9]} 41... Kf7 {[%clk
0:00:17.5]} 42. Qh7+ {[%clk 0:00:40.1]} 1-0

[Event "*** Titled Tuesday Blitz"]
[Site "Chess.com"]
[Date "2020.05.19"]
[Round "9"]
[White "novocane"]
[Black "pfalcon1949"]
[Result "1-0"]
[WhiteElo "2210"]
[BlackElo "1960"]
[TimeControl "180+1"]
[EndTime "13:46:29 PDT"]
[Termination "novocane won on time"]

1. d4 {[%clk 0:03:00.9]} 1... Nf6 {[%clk 0:02:58.1]} 2. c4 {[%clk 0:03:00.8]}
2... e6 {[%clk 0:02:57.8]} 3. Nc3 {[%clk 0:03:00.9]} 3... Bb4 {[%clk 0:02:57.8]}
4. e3 {[%clk 0:03:01.1]} 4... b6 {[%clk 0:02:55.2]} 5. Ne2 {[%clk 0:03:00.7]}
5... c5 {[%clk 0:02:53.6]} 6. a3 {[%clk 0:03:00.5]} 6... Ba5 {[%clk 0:02:52.6]}
7. Rb1 {[%clk 0:03:00]} 7... Na6 {[%clk 0:02:51.4]} 8. Bd2 {[%clk 0:02:59.4]}
8... Bb7 {[%clk 0:02:50.3]} 9. d5 {[%clk 0:02:21]} 9... d6 {[%clk 0:02:32.8]}
10. g3 {[%clk 0:02:16.4]} 10... exd5 {[%clk 0:02:29.2]} 11. Bg2 {[%clk
0:02:16.3]} 11... O-O {[%clk 0:02:26.7]} 12. O-O {[%clk 0:02:09.8]} 12... Qc8
{[%clk 0:02:14.3]} 13. Nxd5 {[%clk 0:02:01]} 13... Bxd5 {[%clk 0:01:57.3]} 14.
cxd5 {[%clk 0:01:40]} 14... Bxd2 {[%clk 0:01:51.3]} 15. Qxd2 {[%clk 0:01:40.9]}
15... Re8 {[%clk 0:01:49.6]} 16. Nc3 {[%clk 0:01:34.8]} 16... Nc7 {[%clk
0:01:48.7]} 17. e4 {[%clk 0:01:27.3]} 17... a6 {[%clk 0:01:38.1]} 18. f4 {[%clk
0:01:22.5]} 18... Qd7 {[%clk 0:01:34.8]} 19. Rfe1 {[%clk 0:01:18.6]} 19... b5
{[%clk 0:01:20.1]} 20. b4 {[%clk 0:01:17.5]} 20... cxb4 {[%clk 0:01:08.8]} 21.
axb4 {[%clk 0:01:18.4]} 21... Rad8 {[%clk 0:00:58.7]} 22. Rbd1 {[%clk
0:01:15.1]} 22... Qg4 {[%clk 0:00:50.6]} 23. Qf2 {[%clk 0:01:08.4]} 23... h6
{[%clk 0:00:23]} 24. Qb6 {[%clk 0:01:05.8]} 24... Rc8 {[%clk 0:00:15.2]} 25.
Qxd6 {[%clk 0:00:44.8]} 25... Red8 {[%clk 0:00:14.8]} 26. Qb6 {[%clk 0:00:43.3]}
26... Qh5 {[%clk 0:00:11.5]} 27. Qd4 {[%clk 0:00:41]} 27... Ng4 {[%clk
0:00:11.2]} 28. h3 {[%clk 0:00:39.4]} 28... Ne6 {[%clk 0:00:11.2]} 29. hxg4
{[%clk 0:00:37.2]} 29... Qxg4 {[%clk 0:00:10.8]} 30. Qe3 {[%clk 0:00:33.9]}
30... Nc7 {[%clk 0:00:08.1]} 31. d6 {[%clk 0:00:31.3]} 31... Ne6 {[%clk
0:00:06.1]} 32. e5 {[%clk 0:00:30.7]} 32... g5 {[%clk 0:00:04.3]} 33. Ne4 {[%clk
0:00:26.1]} 1-0

[Event "*** Titled Tuesday Blitz"]
[Site "Chess.com"]
[Date "2020.05.19"]
[Round "9"]
[White "jerry_77"]
[Black "GoldenShare"]
[Result "1/2-1/2"]
[WhiteElo "2480"]
[BlackElo "2611"]
[TimeControl "180+1"]
[EndTime "13:46:31 PDT"]
[Termination "Game drawn by repetition"]

1. e4 {[%clk 0:02:58.6]} 1... e6 {[%clk 0:02:45.5]} 2. Nf3 {[%clk 0:02:57.6]}
2... d5 {[%clk 0:02:44.4]} 3. Nc3 {[%clk 0:02:58.5]} 3... Nc6 {[%clk 0:02:42.3]}
4. d4 {[%clk 0:02:56.4]} 4... Nf6 {[%clk 0:02:42.7]} 5. e5 {[%clk 0:02:56.2]}
5... Ne4 {[%clk 0:02:43.1]} 6. Bb5 {[%clk 0:02:56]} 6... Bd7 {[%clk 0:02:36.7]}
7. O-O {[%clk 0:02:39.5]} 7... f5 {[%clk 0:02:27.2]} 8. exf6 {[%clk 0:02:38.1]}
8... Qxf6 {[%clk 0:02:26.6]} 9. Bxc6 {[%clk 0:02:35.7]} 9... Bxc6 {[%clk
0:02:20.8]} 10. Nxe4 {[%clk 0:02:31.6]} 10... dxe4 {[%clk 0:02:21.7]} 11. Ne5
{[%clk 0:02:31.9]} 11... Bd6 {[%clk 0:02:15.3]} 12. Nxc6 {[%clk 0:02:25.4]}
12... bxc6 {[%clk 0:02:16.2]} 13. Qg4 {[%clk 0:02:25]} 13... Qf5 {[%clk
0:01:58.2]} 14. Qe2 {[%clk 0:01:50.7]} 14... O-O {[%clk 0:01:55.5]} 15. Be3
{[%clk 0:01:44.6]} 15... Rab8 {[%clk 0:01:41.1]} 16. b3 {[%clk 0:01:40.5]} 16...
Rf6 {[%clk 0:01:41.2]} 17. f4 {[%clk 0:01:32.7]} 17... Rbf8 {[%clk 0:01:31]} 18.
Rf2 {[%clk 0:01:19.7]} 18... h5 {[%clk 0:01:01.8]} 19. Re1 {[%clk 0:01:10.8]}
19... h4 {[%clk 0:00:58.3]} 20. Bd2 {[%clk 0:01:10.4]} 20... c5 {[%clk
0:00:47.3]} 21. Qxe4 {[%clk 0:01:09.8]} 21... Qxe4 {[%clk 0:00:47.1]} 22. Rxe4
{[%clk 0:01:10.7]} 22... cxd4 {[%clk 0:00:47.9]} 23. Rf3 {[%clk 0:01:00.5]}
23... c5 {[%clk 0:00:47.7]} 24. c3 {[%clk 0:00:59.8]} 24... g5 {[%clk
0:00:34.7]} 25. fxg5 {[%clk 0:00:56.3]} 25... Rxf3 {[%clk 0:00:35.6]} 26. gxf3
{[%clk 0:00:56.1]} 26... Rxf3 {[%clk 0:00:36.5]} 27. cxd4 {[%clk 0:00:55.9]}
27... cxd4 {[%clk 0:00:34]} 28. Rxe6 {[%clk 0:00:48.9]} 28... Bxh2+ {[%clk
0:00:33.9]} 29. Kxh2 {[%clk 0:00:46.6]} 29... Rf2+ {[%clk 0:00:34.3]} 30. Kh3
{[%clk 0:00:47.2]} 30... Rxd2 {[%clk 0:00:35.2]} 31. Kxh4 {[%clk 0:00:47.6]}
31... Rxa2 {[%clk 0:00:35.7]} 32. Rd6 {[%clk 0:00:45.7]} 32... Rb2 {[%clk
0:00:27.7]} 33. Rxd4 {[%clk 0:00:42.8]} 33... Rxb3 {[%clk 0:00:27.5]} 34. Rd8+
{[%clk 0:00:42.9]} 34... Kg7 {[%clk 0:00:27.4]} 35. Rd7+ {[%clk 0:00:43.4]}
35... Kg6 {[%clk 0:00:24.2]} 36. Rd6+ {[%clk 0:00:43.5]} 36... Kg7 {[%clk
0:00:22.9]} 37. Kh5 {[%clk 0:00:44.1]} 37... Rh3+ {[%clk 0:00:22.4]} 38. Kg4
{[%clk 0:00:44]} 38... Ra3 {[%clk 0:00:20.4]} 39. Kh5 {[%clk 0:00:43.2]} 39...
Rh3+ {[%clk 0:00:19.7]} 40. Kg4 {[%clk 0:00:43.6]} 40... Ra3 {[%clk 0:00:19.9]}
41. Rc6 {[%clk 0:00:43.9]} 41... Ra1 {[%clk 0:00:16.5]} 42. Kf5 {[%clk
0:00:41.9]} 42... Rf1+ {[%clk 0:00:14.9]} 43. Kg4 {[%clk 0:00:41.8]} 43... Rg1+
{[%clk 0:00:15.2]} 44. Kh5 {[%clk 0:00:42]} 44... Rh1+ {[%clk 0:00:15.6]} 45.
Kg4 {[%clk 0:00:42.4]} 45... Rg1+ {[%clk 0:00:16]} 46. Kh5 {[%clk 0:00:42.4]}
46... Rh1+ {[%clk 0:00:16.3]} 47. Kg4 {[%clk 0:00:42.1]} 47... Rg1+ {[%clk
0:00:16.7]} 1/2-1/2

[Event "*** Titled Tuesday Blitz"]
[Site "Chess.com"]
[Date "2020.05.19"]
[Round "9"]
[White "Tacticusbd"]
[Black "MilanJeremic"]
[Result "1-0"]
[WhiteElo "2408"]
[BlackElo "2290"]
[TimeControl "180+1"]
[EndTime "13:46:32 PDT"]
[Termination "Tacticusbd won by resignation"]

1. e4 {[%clk 0:03:00.9]} 1... c6 {[%clk 0:02:59.1]} 2. d4 {[%clk 0:02:59.9]}
2... d5 {[%clk 0:02:58.7]} 3. e5 {[%clk 0:02:57.2]} 3... a6 {[%clk 0:02:58.1]}
4. Bd3 {[%clk 0:02:50.9]} 4... g6 {[%clk 0:02:56.5]} 5. h4 {[%clk 0:02:47.1]}
5... h5 {[%clk 0:02:55.6]} 6. Bg5 {[%clk 0:02:35.3]} 6... Bh6 {[%clk 0:02:54.2]}
7. Qd2 {[%clk 0:02:33.1]} 7... b5 {[%clk 0:02:48.8]} 8. a4 {[%clk 0:02:30.4]}
8... bxa4 {[%clk 0:02:40.1]} 9. Nc3 {[%clk 0:02:28.5]} 9... Bxg5 {[%clk
0:02:39.4]} 10. hxg5 {[%clk 0:02:26.7]} 10... e6 {[%clk 0:02:37.9]} 11. Nxa4
{[%clk 0:02:25.2]} 11... Nd7 {[%clk 0:02:36.2]} 12. g4 {[%clk 0:02:21.6]} 12...
h4 {[%clk 0:02:35.9]} 13. Rh3 {[%clk 0:02:20.1]} 13... Qc7 {[%clk 0:02:30.5]}
14. f4 {[%clk 0:02:17.9]} 14... c5 {[%clk 0:02:29.4]} 15. c3 {[%clk 0:02:16.1]}
15... Ne7 {[%clk 0:02:27.5]} 16. Nf3 {[%clk 0:02:11.9]} 16... Bb7 {[%clk
0:02:25.5]} 17. Qf2 {[%clk 0:01:58.5]} 17... c4 {[%clk 0:02:22.9]} 18. Bc2
{[%clk 0:01:56]} 18... Bc6 {[%clk 0:02:22.1]} 19. Rxh4 {[%clk 0:01:53.8]} 19...
O-O-O {[%clk 0:02:17.3]} 20. Rh6 {[%clk 0:01:50.4]} 20... Qb7 {[%clk 0:02:10.3]}
21. Qh2 {[%clk 0:01:41.3]} 21... Rhf8 {[%clk 0:02:03.7]} 22. Rh7 {[%clk
0:01:38.4]} 22... Nb8 {[%clk 0:02:01.2]} 23. Ra2 {[%clk 0:01:18]} 23... Bxa4
{[%clk 0:01:55.2]} 24. Bxa4 {[%clk 0:01:14.2]} 24... Nec6 {[%clk 0:01:49.1]} 25.
Kd2 {[%clk 0:00:59.6]} 25... Qb6 {[%clk 0:01:46]} 26. Kc2 {[%clk 0:00:58.4]}
26... Na5 {[%clk 0:01:39.4]} 27. Ra3 {[%clk 0:00:54.8]} 27... Nbc6 {[%clk
0:01:36.1]} 28. Qh6 {[%clk 0:00:52]} 28... Kb8 {[%clk 0:01:12.6]} 29. f5 {[%clk
0:00:50.4]} 29... Ka8 {[%clk 0:01:03.3]} 30. Qg7 {[%clk 0:00:31.1]} 30... Rb8
{[%clk 0:01:01.8]} 31. Ra2 {[%clk 0:00:30.3]} 31... Nb3 {[%clk 0:00:58.5]} 32.
Bxc6+ {[%clk 0:00:18.7]} 32... Qxc6 {[%clk 0:00:48.2]} 33. fxe6 {[%clk 0:00:19]}
33... Qb6 {[%clk 0:00:44.5]} 34. e7 {[%clk 0:00:17]} 34... Rfe8 {[%clk
0:00:42.9]} 35. Qf6 {[%clk 0:00:15.5]} 35... Na1+ {[%clk 0:00:42.5]} 36. Kb1
{[%clk 0:00:14.2]} 36... Nb3 {[%clk 0:00:37.7]} 37. Rxa6+ {[%clk 0:00:12.7]}
37... Qxa6 {[%clk 0:00:36.9]} 1-0

[Event "*** Titled Tuesday Blitz"]
[Site "Chess.com"]
[Date "2020.05.19"]
[Round "9"]
[White "vladislavkovalev"]
[Black "Grandelicious"]
[Result "1-0"]
[WhiteElo "2920"]
[BlackElo "2779"]
[TimeControl "180+1"]
[EndTime "13:46:33 PDT"]
[Termination "vladislavkovalev won by resignation"]

1. e4 {[%clk 0:03:00.9]} 1... c5 {[%clk 0:02:59.8]} 2. Be2 {[%clk 0:03:01.6]}
2... Nc6 {[%clk 0:02:57.1]} 3. d3 {[%clk 0:03:02.2]} 3... d5 {[%clk 0:02:57.3]}
4. c3 {[%clk 0:03:00]} 4... e5 {[%clk 0:02:48.4]} 5. exd5 {[%clk 0:02:58.8]}
5... Qxd5 {[%clk 0:02:48.5]} 6. Bf3 {[%clk 0:02:59.5]} 6... Qd6 {[%clk
0:02:46.5]} 7. Na3 {[%clk 0:02:59.9]} 7... Bd7 {[%clk 0:02:42.1]} 8. Nc4 {[%clk
0:02:49.3]} 8... Qc7 {[%clk 0:02:41.1]} 9. Ne2 {[%clk 0:02:48.7]} 9... g6 {[%clk
0:02:31.4]} 10. O-O {[%clk 0:02:48.8]} 10... Bg7 {[%clk 0:02:31.6]} 11. Be3
{[%clk 0:02:39]} 11... Nd8 {[%clk 0:02:13.2]} 12. Ng3 {[%clk 0:02:26.1]} 12...
f5 {[%clk 0:02:04]} 13. Re1 {[%clk 0:02:16.7]} 13... Ne7 {[%clk 0:01:59.5]} 14.
Bg5 {[%clk 0:02:16.5]} 14... Ndc6 {[%clk 0:01:54.3]} 15. Qb3 {[%clk 0:02:07.9]}
15... h6 {[%clk 0:01:44.4]} 16. Bxe7 {[%clk 0:02:03.8]} 16... Kxe7 {[%clk
0:01:10.3]} 17. d4 {[%clk 0:02:00.7]} 17... cxd4 {[%clk 0:01:02.8]} 18. Bxc6
{[%clk 0:02:00.7]} 18... Bxc6 {[%clk 0:00:42.5]} 19. Nxe5 {[%clk 0:02:00.9]}
19... Bxe5 {[%clk 0:00:42.4]} 20. cxd4 {[%clk 0:01:58.2]} 20... Rhe8 {[%clk
0:00:42.3]} 21. Rxe5+ {[%clk 0:01:42.9]} 21... Kf8 {[%clk 0:00:41.9]} 22. Rae1
{[%clk 0:01:43.6]} 22... Rxe5 {[%clk 0:00:37.7]} 23. Rxe5 {[%clk 0:01:42]} 23...
Rd8 {[%clk 0:00:35.1]} 24. Qe3 {[%clk 0:01:38.7]} 24... Qg7 {[%clk 0:00:26.1]}
25. h4 {[%clk 0:01:38.3]} 25... Kg8 {[%clk 0:00:15.6]} 26. h5 {[%clk 0:01:19.8]}
26... gxh5 {[%clk 0:00:16.5]} 27. Rxf5 {[%clk 0:00:51.6]} 27... Rxd4 {[%clk
0:00:15.6]} 28. Qe6+ {[%clk 0:00:30.1]} 28... Kh8 {[%clk 0:00:15.7]} 29. Rf6
{[%clk 0:00:30.8]} 29... Qg5 {[%clk 0:00:11.6]} 30. Rf8+ {[%clk 0:00:18.2]}
30... Kh7 {[%clk 0:00:12]} 31. Qf7+ {[%clk 0:00:18.3]} 31... Qg7 {[%clk
0:00:11.3]} 32. Qf5+ {[%clk 0:00:18.9]} 32... Qg6 {[%clk 0:00:10.7]} 33. Rf7+
{[%clk 0:00:19.6]} 33... Kh8 {[%clk 0:00:11.3]} 34. Qxg6 {[%clk 0:00:20.3]} 1-0

[Event "*** Titled Tuesday Blitz"]
[Site "Chess.com"]
[Date "2020.05.19"]
[Round "9"]
[White "Mikhail_Golubev"]
[Black "boasovietica"]
[Result "1-0"]
[WhiteElo "2545"]
[BlackElo "2383"]
[TimeControl "180+1"]
[EndTime "13:46:34 PDT"]
[Termination "Mikhail_Golubev won on time"]

1. e4 {[%clk 0:03:00.9]} 1... e5 {[%clk 0:02:52.7]} 2. Nf3 {[%clk 0:03:00.1]}
2... Nc6 {[%clk 0:02:52.1]} 3. Nc3 {[%clk 0:02:58.9]} 3... Nf6 {[%clk
0:02:51.2]} 4. d4 {[%clk 0:02:58.5]} 4... exd4 {[%clk 0:02:50.9]} 5. Nxd4 {[%clk
0:02:58.6]} 5... Bb4 {[%clk 0:02:51.1]} 6. Nxc6 {[%clk 0:02:58.6]} 6... bxc6
{[%clk 0:02:50.8]} 7. Bd3 {[%clk 0:02:58.7]} 7... d5 {[%clk 0:02:50.1]} 8. exd5
{[%clk 0:02:58.5]} 8... O-O {[%clk 0:02:50]} 9. O-O {[%clk 0:02:58.2]} 9... cxd5
{[%clk 0:02:49.8]} 10. Bg5 {[%clk 0:02:57.9]} 10... c6 {[%clk 0:02:48.9]} 11.
Na4 {[%clk 0:02:57.9]} 11... Bd6 {[%clk 0:02:40.6]} 12. Re1 {[%clk 0:02:44.5]}
12... Rb8 {[%clk 0:02:38.7]} 13. c4 {[%clk 0:02:22.3]} 13... h6 {[%clk
0:02:22.4]} 14. Bh4 {[%clk 0:02:19.7]} 14... Be6 {[%clk 0:02:19.2]} 15. Bc2
{[%clk 0:02:02.3]} 15... Rb4 {[%clk 0:01:31.6]} 16. Qd3 {[%clk 0:01:09.8]} 16...
Re8 {[%clk 0:01:13.7]} 17. Bxf6 {[%clk 0:00:34.8]} 17... Qxf6 {[%clk 0:01:09.2]}
18. cxd5 {[%clk 0:00:29.5]} 18... cxd5 {[%clk 0:00:58.5]} 19. Nc3 {[%clk
0:00:29.1]} 19... Kf8 {[%clk 0:00:24.2]} 20. Nxd5 {[%clk 0:00:26]} 20... Bxd5
{[%clk 0:00:20.9]} 21. Rxe8+ {[%clk 0:00:22.6]} 21... Kxe8 {[%clk 0:00:20.9]}
22. Qxd5 {[%clk 0:00:22.7]} 22... Qf4 {[%clk 0:00:09.9]} 23. Re1+ {[%clk
0:00:20.4]} 23... Kf8 {[%clk 0:00:09.5]} 24. g3 {[%clk 0:00:18.4]} 24... Qf6
{[%clk 0:00:07.9]} 25. Rd1 {[%clk 0:00:16.7]} 25... Bc7 {[%clk 0:00:04]} 26. Bb3
{[%clk 0:00:13.6]} 26... g6 {[%clk 0:00:03.1]} 27. Qa8+ {[%clk 0:00:11.3]} 27...
Kg7 {[%clk 0:00:03]} 28. Rd7 {[%clk 0:00:10.6]} 1-0

[Event "*** Titled Tuesday Blitz"]
[Site "Chess.com"]
[Date "2020.05.19"]
[Round "9"]
[White "realmadridtv"]
[Black "ViktoriyaTarasova"]
[Result "1-0"]
[WhiteElo "2475"]
[BlackElo "2290"]
[TimeControl "180+1"]
[EndTime "13:46:35 PDT"]
[Termination "realmadridtv won by resignation"]

1. d4 {[%clk 0:03:00.9]} 1... Nf6 {[%clk 0:02:59.3]} 2. c4 {[%clk 0:03:01.2]}
2... e6 {[%clk 0:02:59.7]} 3. g3 {[%clk 0:03:01.6]} 3... c5 {[%clk 0:02:57.8]}
4. d5 {[%clk 0:03:01.3]} 4... exd5 {[%clk 0:02:56.9]} 5. cxd5 {[%clk 0:03:02.2]}
5... g6 {[%clk 0:02:56.7]} 6. Bg2 {[%clk 0:03:02.8]} 6... Bg7 {[%clk 0:02:57.1]}
7. Nc3 {[%clk 0:03:03.6]} 7... d6 {[%clk 0:02:56.3]} 8. Nf3 {[%clk 0:03:04]}
8... O-O {[%clk 0:02:56.4]} 9. O-O {[%clk 0:03:04.7]} 9... a6 {[%clk 0:02:56.1]}
10. a4 {[%clk 0:03:03.8]} 10... Nbd7 {[%clk 0:02:54.9]} 11. Bf4 {[%clk
0:03:01.9]} 11... Qc7 {[%clk 0:02:53.1]} 12. e4 {[%clk 0:02:55.6]} 12... Nh5
{[%clk 0:02:51.4]} 13. Be3 {[%clk 0:02:50.3]} 13... Rb8 {[%clk 0:02:51.3]} 14.
Nh4 {[%clk 0:02:31.7]} 14... b5 {[%clk 0:02:48.8]} 15. axb5 {[%clk 0:02:30.2]}
15... axb5 {[%clk 0:02:49.4]} 16. g4 {[%clk 0:02:23.6]} 16... Nhf6 {[%clk
0:02:45.7]} 17. g5 {[%clk 0:02:23.9]} 17... Nh5 {[%clk 0:02:38.8]} 18. f4 {[%clk
0:02:20.6]} 18... b4 {[%clk 0:02:36.6]} 19. Na4 {[%clk 0:02:15.7]} 19... f6
{[%clk 0:02:26.3]} 20. Nf3 {[%clk 0:02:09.5]} 20... h6 {[%clk 0:02:19.9]} 21.
gxf6 {[%clk 0:02:06.7]} 21... Ndxf6 {[%clk 0:02:17.7]} 22. e5 {[%clk 0:01:59.6]}
22... Ne4 {[%clk 0:01:49.4]} 23. Nh4 {[%clk 0:01:53.4]} 23... Bf5 {[%clk
0:01:26.3]} 24. Nxf5 {[%clk 0:01:52.7]} 24... gxf5 {[%clk 0:01:22.9]} 25. Qxh5
{[%clk 0:01:52]} 25... dxe5 {[%clk 0:01:23.7]} 26. Bxe4 {[%clk 0:01:44.1]} 26...
fxe4 {[%clk 0:01:23.4]} 27. f5 {[%clk 0:01:40.7]} 27... c4 {[%clk 0:01:20.1]}
28. Nc5 {[%clk 0:01:38.2]} 28... Qf7 {[%clk 0:01:13.3]} 29. Qxf7+ {[%clk
0:01:36]} 29... Rxf7 {[%clk 0:01:13.8]} 30. Nxe4 {[%clk 0:01:34]} 30... Bf8
{[%clk 0:01:09.8]} 31. d6 {[%clk 0:01:23.6]} 31... c3 {[%clk 0:01:06.9]} 32.
bxc3 {[%clk 0:01:21.5]} 32... bxc3 {[%clk 0:01:07.8]} 33. Rac1 {[%clk
0:01:19.7]} 33... Rc8 {[%clk 0:01:06.3]} 34. Rf2 {[%clk 0:01:16.4]} 34... Rc6
{[%clk 0:01:04.1]} 35. d7 {[%clk 0:01:13.8]} 35... Rxd7 {[%clk 0:01:00.8]} 36.
Rxc3 {[%clk 0:01:13.4]} 36... Rxc3 {[%clk 0:00:59.7]} 37. Nxc3 {[%clk
0:01:13.6]} 37... Rd3 {[%clk 0:00:57.8]} 38. Bd2 {[%clk 0:01:11.9]} 38... Bc5
{[%clk 0:00:56.6]} 39. Ne4 {[%clk 0:01:04.9]} 39... Bxf2+ {[%clk 0:00:53.3]} 40.
Kxf2 {[%clk 0:01:05.8]} 40... h5 {[%clk 0:00:47.6]} 41. Be3 {[%clk 0:00:57.3]}
41... Kf7 {[%clk 0:00:45.7]} 42. Kf3 {[%clk 0:00:52.1]} 42... Ra3 {[%clk
0:00:45.5]} 43. h4 {[%clk 0:00:50.9]} 43... Ra1 {[%clk 0:00:43.4]} 44. Bg5
{[%clk 0:00:48.5]} 44... Rf1+ {[%clk 0:00:41.9]} 45. Ke2 {[%clk 0:00:48.4]}
45... Ra1 {[%clk 0:00:39.8]} 46. Nd6+ {[%clk 0:00:48]} 46... Kf8 {[%clk
0:00:38.9]} 47. Kf3 {[%clk 0:00:43]} 47... Ra4 {[%clk 0:00:37.4]} 48. f6 {[%clk
0:00:39.4]} 48... Ra6 {[%clk 0:00:35.7]} 49. Bh6+ {[%clk 0:00:35.6]} 49... Kg8
{[%clk 0:00:35.4]} 50. f7+ {[%clk 0:00:35.7]} 1-0

[Event "*** Titled Tuesday Blitz"]
[Site "Chess.com"]
[Date "2020.05.19"]
[Round "9"]
[White "Nikithebest"]
[Black "cukin84"]
[Result "0-1"]
[WhiteElo "2431"]
[BlackElo "2181"]
[TimeControl "180+1"]
[EndTime "13:46:36 PDT"]
[Termination "cukin84 won on time"]

1. e4 {[%clk 0:03:00.9]} 1... c6 {[%clk 0:02:59.5]} 2. d4 {[%clk 0:03:00.3]}
2... d5 {[%clk 0:02:59.5]} 3. f3 {[%clk 0:03:01.2]} 3... Nf6 {[%clk 0:02:55.3]}
4. e5 {[%clk 0:02:59.2]} 4... Nfd7 {[%clk 0:02:55]} 5. f4 {[%clk 0:03:00.1]}
5... e6 {[%clk 0:02:54.9]} 6. Nf3 {[%clk 0:03:00.4]} 6... c5 {[%clk 0:02:54.7]}
7. c3 {[%clk 0:02:52.1]} 7... Nc6 {[%clk 0:02:54.7]} 8. Bd3 {[%clk 0:02:50.2]}
8... cxd4 {[%clk 0:02:53.5]} 9. Nxd4 {[%clk 0:02:44.4]} 9... Bc5 {[%clk
0:02:50.8]} 10. Nb3 {[%clk 0:02:09.6]} 10... Bb6 {[%clk 0:02:43.8]} 11. Qe2
{[%clk 0:02:10.2]} 11... f6 {[%clk 0:02:28.5]} 12. exf6 {[%clk 0:02:08.3]} 12...
Nxf6 {[%clk 0:02:28.1]} 13. Be3 {[%clk 0:02:08.8]} 13... Bxe3 {[%clk 0:02:21.2]}
14. Qxe3 {[%clk 0:02:09.7]} 14... Ng4 {[%clk 0:02:17.4]} 15. Qg3 {[%clk
0:02:06.7]} 15... e5 {[%clk 0:02:07.6]} 16. fxe5 {[%clk 0:02:01.8]} 16... O-O
{[%clk 0:02:05.2]} 17. Be2 {[%clk 0:01:52.3]} 17... Ngxe5 {[%clk 0:01:58.1]} 18.
N1d2 {[%clk 0:01:52.3]} 18... Bf5 {[%clk 0:01:40.4]} 19. O-O {[%clk 0:01:51.1]}
19... Qb6+ {[%clk 0:01:32]} 20. Kh1 {[%clk 0:01:50.9]} 20... Rae8 {[%clk
0:01:31.4]} 21. Nf3 {[%clk 0:01:45.4]} 21... Ng6 {[%clk 0:01:24.6]} 22. Nfd4
{[%clk 0:01:37.1]} 22... Be4 {[%clk 0:01:24]} 23. Bg4 {[%clk 0:01:05.3]} 23...
Nxd4 {[%clk 0:01:18.7]} 24. cxd4 {[%clk 0:01:04.8]} 24... Qb5 {[%clk 0:01:10.3]}
25. Rfe1 {[%clk 0:00:52.6]} 25... b6 {[%clk 0:01:01.8]} 26. h4 {[%clk
0:00:52.7]} 26... Nf4 {[%clk 0:00:58.6]} 27. Bf3 {[%clk 0:00:42.1]} 27... Bg6
{[%clk 0:00:42.5]} 28. Re5 {[%clk 0:00:36.5]} 28... Rxe5 {[%clk 0:00:35.6]} 29.
dxe5 {[%clk 0:00:37.4]} 29... Ne2 {[%clk 0:00:29.4]} 30. Qg4 {[%clk 0:00:29.4]}
30... Nf4 {[%clk 0:00:26.9]} 31. g3 {[%clk 0:00:23.6]} 31... Nd3 {[%clk
0:00:24.7]} 32. Kg2 {[%clk 0:00:16.6]} 32... Rxf3 {[%clk 0:00:22.2]} 33. Qxf3
{[%clk 0:00:15.2]} 33... Be4 {[%clk 0:00:21.2]} 34. Nd4 {[%clk 0:00:13.6]} 34...
Bxf3+ {[%clk 0:00:20.8]} 0-1